[Event "Championnat d'Europe de Blitz"]
[Date "2024.12.09"]
[White "Gavrilescu, David"]
[Black "Hamitevici, Vladimir"]
[WhiteElo "2549"]
[BlackElo "2423"]
[Round "6.26"]
[Result "1/2-1/2"]
[TimeControl "180+2"]

1. e4 {[%emt 00:00:02] [%clk 00:03:02]} c5 {[%emt 00:00:06] [%clk 00:02:58]} 2.
Nf3 {[%emt 00:00:01] [%clk 00:03:02]} d6 {[%emt 00:00:05] [%clk 00:02:56]} 3. d4
{[%emt 00:00:02] [%clk 00:03:02]} cxd4 {[%emt 00:00:01] [%clk 00:02:57]} 4. Qxd4
{[%emt 00:00:02] [%clk 00:03:03]} a6 {[%emt 00:00:06] [%clk 00:02:52]} 5. h3
{[%emt 00:00:02] [%clk 00:03:02]} e5 {[%emt 00:00:12] [%clk 00:02:42]} 6. Qd3
{[%emt 00:00:16] [%clk 00:02:48]} Nd7 {[%emt 00:00:23] [%clk 00:02:22]} 7. Bg5
{[%emt 00:00:22] [%clk 00:02:28]} Be7 {[%emt 00:00:10] [%clk 00:02:13]} 8. Bxe7
{[%emt 00:00:06] [%clk 00:02:24]} Qxe7 {[%emt 00:00:02] [%clk 00:02:14]} 9. Nc3
{[%emt 00:00:01] [%clk 00:02:25]} Nc5 {[%emt 00:00:13] [%clk 00:02:03]} 10. Qe3
{[%emt 00:00:15] [%clk 00:02:12]} Be6 {[%emt 00:00:11] [%clk 00:01:55]} 11. Be2
{[%emt 00:00:20] [%clk 00:01:55]} Nf6 {[%emt 00:00:04] [%clk 00:01:53]} 12. a4
{[%emt 00:00:05] [%clk 00:01:51]} O-O {[%emt 00:00:18] [%clk 00:01:37]} 13. O-O
{[%emt 00:00:02] [%clk 00:01:51]} Rac8 {[%emt 00:00:12] [%clk 00:01:26]} 14.
Rfd1 {[%emt 00:00:15] [%clk 00:01:38]} Rc6 {[%emt 00:00:20] [%clk 00:01:08]} 15.
a5 {[%emt 00:00:19] [%clk 00:01:22]} Rfc8 {[%emt 00:00:02] [%clk 00:01:07]} 16.
Nd5 {[%emt 00:00:07] [%clk 00:01:18]} Bxd5 {[%emt 00:00:03] [%clk 00:01:06]} 17.
exd5 {[%emt 00:00:01] [%clk 00:01:18]} R6c7 {[%emt 00:00:02] [%clk 00:01:06]}
18. b4 {[%emt 00:00:09] [%clk 00:01:11]} Ncd7 {[%emt 00:00:03]} 19. c4 {[%clk
00:01:12]} e4 {[%emt 00:00:10] [%clk 00:00:57]} 20. Nd2 {[%emt 00:00:08] [%clk
00:01:06]} Qe5 {[%emt 00:00:31] [%clk 00:00:29]} 21. Re1 {[%emt 00:00:09] [%clk
00:00:58]} Nf8 {[%emt 00:00:14] [%clk 00:00:17]} 22. Bd1 {[%emt 00:00:40] [%clk
00:00:20]} Re7 {[%emt 00:00:04] [%clk 00:00:15]} 23. Ra3 {[%emt 00:00:09] [%clk
00:00:14]} Ng6 {[%emt 00:00:05] [%clk 00:00:12]} 24. Rb3 {[%emt 00:00:11] [%clk
00:00:04]} h5 {[%emt 00:00:05] [%clk 00:00:10]} 25. Be2 {[%emt 00:00:01] [%clk
00:00:04]} Nh4 {[%emt 00:00:05] [%clk 00:00:07]} 26. Bf1 {[%emt 00:00:02] [%clk
00:00:05]} Nf5 {[%emt 00:00:02] [%clk 00:00:07]} 27. Qc3 {[%emt 00:00:04] [%clk
00:00:03]} Nd4 {[%emt 00:00:05] [%clk 00:00:04]} 28. Rbb1 {[%emt 00:00:01] [%clk
00:00:03]} Nxd5 {[%emt 00:00:02] [%clk 00:00:04]} 29. Qb2 {[%clk 00:00:04]} Nf6
{[%emt 00:00:03] [%clk 00:00:04]} 30. Kh1 {[%clk 00:00:04]} Nf5 {[%emt 00:00:02]
[%clk 00:00:03]} 31. Qxe5 {[%emt 00:00:02] [%clk 00:00:05]} Rxe5 {[%clk
00:00:05]} 32. Rbd1 {[%clk 00:00:06]} e3 {[%emt 00:00:02] [%clk 00:00:05]} 33.
Nf3 {[%emt 00:00:01] [%clk 00:00:06]} Re7 {[%emt 00:00:04] [%clk 00:00:04]} 34.
fxe3 {[%emt 00:00:02] [%clk 00:00:06]} Rxe3 {[%emt 00:00:01] [%clk 00:00:04]}
35. Kg1 {[%emt 00:00:03] [%clk 00:00:05]} Rxe1 {[%emt 00:00:02] [%clk 00:00:04]}
36. Rxe1 {[%clk 00:00:07]} Kf8 {[%emt 00:00:02] [%clk 00:00:04]} 37. Bd3 {[%emt
00:00:01] [%clk 00:00:06]} Ne7 {[%emt 00:00:02] [%clk 00:00:06]} 38. Nd4 {[%emt
00:00:01] [%clk 00:00:07]} Nc6 {[%clk 00:00:07]} 39. Nf5 {[%emt 00:00:01] [%clk
00:00:07]} Nxb4 {[%emt 00:00:04]} 40. Bf1 {[%clk 00:00:07]} d5 {[%emt 00:00:03]
[%clk 00:00:07]} 41. Nd6 {[%emt 00:00:02] [%clk 00:00:07]} Rc7 {[%emt 00:00:02]
[%clk 00:00:07]} 42. cxd5 {[%emt 00:00:02] [%clk 00:00:06]} Nbxd5 {[%clk
00:00:08]} 43. Rb1 {[%emt 00:00:01] [%clk 00:00:07]} Ne8 {[%emt 00:00:07] [%clk
00:00:03]} 44. Nxb7 {[%emt 00:00:02] [%clk 00:00:07]} Nc3 {[%emt 00:00:03]} 45.
Rb3 {[%clk 00:00:07]} Nb5 {[%emt 00:00:03] [%clk 00:00:04]} 46. Nd8 {[%emt
00:00:03] [%clk 00:00:06]} Rc8 {[%emt 00:00:03] [%clk 00:00:03]} 47. Bxb5 {[%emt
00:00:02] [%clk 00:00:05]} Rxd8 {[%clk 00:00:04]} 48. Bxa6 {[%emt 00:00:01]
[%clk 00:00:06]} Ra8 {[%emt 00:00:02] [%clk 00:00:05]} 49. Rb6 {[%emt 00:00:03]
[%clk 00:00:05]} Nc7 {[%clk 00:00:06]} 50. Bc4 {[%emt 00:00:01] [%clk 00:00:06]}
Rxa5 {[%emt 00:00:02] [%clk 00:00:07]} 51. Rc6 {[%emt 00:00:01] [%clk 00:00:07]}
Ne8 {[%emt 00:00:02] [%clk 00:00:07]} 52. Kf2 {[%emt 00:00:03] [%clk 00:00:05]}
Rf5+ {[%emt 00:00:02] [%clk 00:00:08]} 53. Kg3 {[%emt 00:00:02] [%clk 00:00:05]}
Rf6 {[%clk 00:00:09]} 54. Rc8 {[%emt 00:00:01] [%clk 00:00:05]} Ke7 {[%emt
00:00:03] [%clk 00:00:09]} 55. Ra8 {[%emt 00:00:01] [%clk 00:00:06]} Rc6 {[%emt
00:00:03] [%clk 00:00:07]} 56. Rxe8+ {[%emt 00:00:04] [%clk 00:00:04]} Kxe8
{[%emt 00:00:01] [%clk 00:00:09]} 57. Bb5 {[%clk 00:00:05]} Kd7 {[%clk
00:00:10]} 58. Kh4 {[%clk 00:00:06]} Kd6 {[%emt 00:00:03] [%clk 00:00:09]} 59.
Bxc6 {[%emt 00:00:01] [%clk 00:00:07]} Kxc6 {[%clk 00:00:10]} 60. Kxh5 {[%emt
00:00:02] [%clk 00:00:08]} Kd6 {[%clk 00:00:12]} 61. Kg5 {[%emt 00:00:01] [%clk
00:00:08]} Ke6 {[%emt 00:00:03] [%clk 00:00:11]} 62. h4 {[%clk 00:00:09]} Ke5
{[%emt 00:00:02] [%clk 00:00:11]} 63. h5 {[%emt 00:00:04] [%clk 00:00:08]} Ke4
{[%emt 00:00:05] [%clk 00:00:07]} 64. g4 {[%emt 00:00:03] [%clk 00:00:07]} Ke5
{[%emt 00:00:03] [%clk 00:00:07]} 65. h6 {[%emt 00:00:01] [%clk 00:00:07]} gxh6
{[%emt 00:00:02] [%clk 00:00:08]} 66. Kxh6 {[%emt 00:00:01] [%clk 00:00:08]} Kf4
{[%clk 00:00:09]} 67. Kg7 {[%emt 00:00:01] [%clk 00:00:09]} Kxg4 {[%clk
00:00:10]} 68. Kxf7 {[%clk 00:00:10]} 1/2-1/2

[Site "Europe Echecs"]

[Event "Championnat d'Europe de Blitz"]
[Date "2024.12.09"]
[White "Navara, David"]
[Black "Nevednichy, Vladislav"]
[WhiteElo "2665"]
[BlackElo "2451"]
[Round "6.27"]
[Result "0-1"]
[TimeControl "180+2"]

1. e4 {[%emt 00:03:09] [%clk 00:03:03]} e6 {[%emt 00:00:06] [%clk 00:02:59]} 2.
d4 {[%emt 00:00:02] [%clk 00:03:04]} d5 {[%clk 00:03:00]} 3. Nc3 {[%emt
00:00:01] [%clk 00:03:04]} Nf6 {[%emt 00:00:03] [%clk 00:03:00]} 4. e5 {[%emt
00:00:01] [%clk 00:03:04]} Nfd7 {[%clk 00:03:01]} 5. f4 {[%emt 00:00:02] [%clk
00:03:05]} c5 {[%emt 00:00:01] [%clk 00:03:02]} 6. Nf3 {[%emt 00:00:01] [%clk
00:03:05]} Nc6 {[%clk 00:03:03]} 7. Be3 {[%emt 00:00:01] [%clk 00:03:06]} Be7
{[%emt 00:00:05] [%clk 00:03:00]} 8. Qd2 {[%emt 00:00:22] [%clk 00:02:47]} O-O
{[%emt 00:00:02] [%clk 00:03:00]} 9. dxc5 {[%emt 00:00:02] [%clk 00:02:47]} Qa5
{[%emt 00:00:32] [%clk 00:02:30]} 10. a3 {[%emt 00:00:03] [%clk 00:02:45]} a6
{[%emt 00:00:34] [%clk 00:01:59]} 11. Rb1 {[%emt 00:01:20] [%clk 00:01:27]} Bxc5
{[%emt 00:00:03] [%clk 00:01:58]} 12. Bxc5 {[%emt 00:00:03] [%clk 00:01:26]}
Qxc5 {[%emt 00:00:01] [%clk 00:01:59]} 13. b4 {[%emt 00:00:12] [%clk 00:01:16]}
Qa7 {[%emt 00:00:05] [%clk 00:01:55]} 14. Bd3 {[%emt 00:00:10] [%clk 00:01:08]}
f6 {[%emt 00:00:12] [%clk 00:01:45]} 15. b5 {[%emt 00:00:21] [%clk 00:00:49]}
axb5 {[%emt 00:00:29] [%clk 00:01:18]} 16. Nxb5 {[%emt 00:00:02] [%clk
00:00:49]} Qb6 {[%clk 00:01:20]} 17. c4 {[%emt 00:00:24] [%clk 00:00:27]} Nc5
{[%emt 00:00:14] [%clk 00:01:08]} 18. cxd5 {[%emt 00:00:18] [%clk 00:00:12]}
exd5 {[%emt 00:00:05] [%clk 00:01:05]} 19. Bc2 {[%emt 00:00:09] [%clk 00:00:05]}
fxe5 {[%emt 00:00:24] [%clk 00:00:43]} 20. Ng5 {[%clk 00:00:06]} Qa5 {[%emt
00:00:24] [%clk 00:00:21]} 21. Bxh7+ {[%emt 00:00:02] [%clk 00:00:06]} Kh8
{[%clk 00:00:23]} 22. Qxa5 {[%emt 00:00:04] [%clk 00:00:04]} Rxa5 {[%emt
00:00:01] [%clk 00:00:23]} 23. fxe5 {[%emt 00:00:02] [%clk 00:00:05]} Nxe5
{[%emt 00:00:06] [%clk 00:00:19]} 24. Rf1 {[%emt 00:00:01] [%clk 00:00:05]} Re8
{[%emt 00:00:10] [%clk 00:00:11]} 25. Kd1 {[%emt 00:00:02] [%clk 00:00:06]} Bg4+
{[%emt 00:00:02] [%clk 00:00:11]} 26. Kc2 {[%emt 00:00:02] [%clk 00:00:06]} g6
{[%emt 00:00:01] [%clk 00:00:11]} 27. Rfe1 {[%emt 00:00:02] [%clk 00:00:06]}
Bf5+ {[%emt 00:00:02] [%clk 00:00:11]} 28. Kd1 {[%emt 00:00:02] [%clk 00:00:06]}
Bxb1 {[%emt 00:00:03] [%clk 00:00:11]} 29. Nd6 {[%clk 00:00:07]} Re7 {[%emt
00:00:02] [%clk 00:00:10]} 30. Nc8 {[%emt 00:00:02] [%clk 00:00:07]} Rxh7 {[%emt
00:00:04] [%clk 00:00:08]} 31. Nxh7 {[%emt 00:00:01] [%clk 00:00:08]} Kxh7
{[%clk 00:00:09]} 32. Rxe5 {[%emt 00:00:01] [%clk 00:00:09]} Ne4 {[%emt
00:00:02] [%clk 00:00:09]} 33. Kc1 {[%emt 00:00:02] [%clk 00:00:09]} Ba2 {[%emt
00:00:02] [%clk 00:00:10]} 34. Nb6 {[%emt 00:00:03] [%clk 00:00:07]} Nf6 {[%emt
00:00:03] [%clk 00:00:10]} 35. Re6 {[%emt 00:00:02] [%clk 00:00:07]} Kg7 {[%emt
00:00:02] [%clk 00:00:10]} 36. Kb2 {[%emt 00:00:02] [%clk 00:00:08]} Bc4 {[%emt
00:00:01] [%clk 00:00:10]} 37. Re7+ {[%emt 00:00:01] [%clk 00:00:09]} Kh6 {[%emt
00:00:01] [%clk 00:00:11]} 38. Rxb7 {[%emt 00:00:02] [%clk 00:00:09]} Rb5+
{[%emt 00:00:02] [%clk 00:00:11]} 39. Kc2 {[%emt 00:00:02] [%clk 00:00:09]} d4
{[%emt 00:00:02] [%clk 00:00:11]} 40. Rc7 {[%emt 00:00:03] [%clk 00:00:08]} Bb3+
{[%emt 00:00:04] [%clk 00:00:09]} 41. Kd3 {[%emt 00:00:02] [%clk 00:00:08]} Rxb6
{[%clk 00:00:10]} 42. Kxd4 {[%emt 00:00:01] [%clk 00:00:09]} Kg5 {[%emt
00:00:01] [%clk 00:00:11]} 43. Rc5+ {[%emt 00:00:04] [%clk 00:00:08]} Kf4 {[%clk
00:00:12]} 44. Kd3 {[%emt 00:00:02] [%clk 00:00:08]} Bd5 {[%emt 00:00:02] [%clk
00:00:12]} 45. g3+ {[%emt 00:00:03] [%clk 00:00:07]} Ke5 {[%clk 00:00:14]} 46.
Kc2 {[%emt 00:00:02] [%clk 00:00:07]} Ra6 {[%emt 00:00:01] [%clk 00:00:15]} 47.
Kb2 {[%clk 00:00:08]} Kd4 {[%clk 00:00:16]} 48. Rb5 {[%emt 00:00:01] [%clk
00:00:09]} Ne4 {[%clk 00:00:17]} 49. Rb4+ {[%emt 00:00:01] [%clk 00:00:10]} Bc4
{[%clk 00:00:18]} 50. a4 {[%emt 00:00:01] [%clk 00:00:11]} Rf6 {[%clk 00:00:19]}
51. Ka3 {[%emt 00:00:03] [%clk 00:00:10]} Rf3+ {[%emt 00:00:01] [%clk 00:00:20]}
52. Kb2 {[%emt 00:00:01] [%clk 00:00:11]} Rf2+ {[%clk 00:00:21]} 0-1

[Site "Europe Echecs"]

[Event "Championnat d'Europe de Blitz"]
[Date "2024.12.09"]
[White "Vuckovic, Zarko"]
[Black "Sargissian, Gabriel"]
[WhiteElo "2334"]
[BlackElo "2628"]
[Round "6.28"]
[Result "0-1"]
[TimeControl "180+2"]

1. e4 {[%clk 00:03:03]} e5 {[%emt 00:00:03] [%clk 00:03:03]} 2. Nf3 {[%clk
00:03:04]} Nc6 {[%clk 00:03:04]} 3. Bc4 {[%emt 00:00:01] [%clk 00:03:05]} Nf6
{[%emt 00:00:02] [%clk 00:03:03]} 4. d3 {[%emt 00:00:01] [%clk 00:03:07]} Be7
{[%emt 00:00:01] [%clk 00:03:03]} 5. O-O {[%emt 00:00:02] [%clk 00:03:07]} O-O
{[%emt 00:00:03] [%clk 00:03:03]} 6. Re1 {[%clk 00:03:08]} d6 {[%emt 00:00:04]
[%clk 00:03:01]} 7. a4 {[%clk 00:03:10]} h6 {[%emt 00:00:12] [%clk 00:02:51]} 8.
a5 {[%emt 00:00:02] [%clk 00:03:10]} a6 {[%emt 00:00:04] [%clk 00:02:48]} 9. c3
{[%clk 00:03:11]} Be6 {[%emt 00:00:27] [%clk 00:02:23]} 10. Nbd2 {[%emt
00:01:20] [%clk 00:01:54]} Bxc4 {[%emt 00:00:02] [%clk 00:02:23]} 11. Nxc4
{[%clk 00:01:55]} Re8 {[%emt 00:00:01] [%clk 00:02:23]} 12. Qb3 {[%emt 00:00:10]
[%clk 00:01:47]} Rb8 {[%emt 00:00:03] [%clk 00:02:22]} 13. Ne3 {[%emt 00:00:39]
[%clk 00:01:09]} Bf8 {[%emt 00:00:02] [%clk 00:02:22]} 14. c4 {[%emt 00:00:03]
[%clk 00:01:09]} Nd7 {[%emt 00:00:22] [%clk 00:02:02]} 15. Nd5 {[%emt 00:00:06]
[%clk 00:01:05]} Nc5 {[%emt 00:00:07] [%clk 00:01:58]} 16. Qc3 {[%emt 00:00:01]
[%clk 00:01:06]} Ne6 {[%emt 00:00:18] [%clk 00:01:42]} 17. Be3 {[%clk 00:01:06]}
g6 {[%emt 00:00:09] [%clk 00:01:36]} 18. b4 {[%clk 00:01:07]} Bg7 {[%emt
00:00:01] [%clk 00:01:37]} 19. b5 {[%emt 00:00:02] [%clk 00:01:07]} Ncd4 {[%emt
00:00:02] [%clk 00:01:36]} 20. Bxd4 {[%emt 00:00:02] [%clk 00:01:07]} exd4
{[%emt 00:00:03] [%clk 00:01:36]} 21. Qd2 {[%emt 00:00:04] [%clk 00:01:05]} c6
{[%emt 00:00:12] [%clk 00:01:26]} 22. Nb6 {[%emt 00:00:09] [%clk 00:00:58]} Nc5
{[%emt 00:00:10] [%clk 00:01:17]} 23. Reb1 {[%clk 00:00:59]} Qe7 {[%emt
00:00:10] [%clk 00:01:09]} 24. g3 {[%emt 00:00:07] [%clk 00:00:54]} Qe6 {[%emt
00:00:16] [%clk 00:00:55]} 25. Kg2 {[%emt 00:00:01] [%clk 00:00:54]} g5 {[%emt
00:00:11] [%clk 00:00:46]} 26. Na4 {[%emt 00:00:04] [%clk 00:00:52]} Nd7 {[%emt
00:00:11] [%clk 00:00:37]} 27. bxc6 {[%emt 00:00:04] [%clk 00:00:49]} bxc6
{[%emt 00:00:01] [%clk 00:00:38]} 28. Rb4 {[%emt 00:00:02] [%clk 00:00:49]} Rxb4
{[%emt 00:00:09] [%clk 00:00:31]} 29. Qxb4 {[%clk 00:00:50]} Rb8 {[%clk
00:00:32]} 30. Qe1 {[%clk 00:00:51]} Rb3 {[%emt 00:00:07] [%clk 00:00:27]} 31.
Qd1 {[%emt 00:00:06] [%clk 00:00:47]} Rb8 {[%emt 00:00:03] [%clk 00:00:27]} 32.
Rb1 {[%clk 00:00:48]} Qe8 {[%clk 00:00:29]} 33. Qc2 {[%emt 00:00:04] [%clk
00:00:46]} Qc8 {[%emt 00:00:04] [%clk 00:00:27]} 34. Rb3 {[%emt 00:00:04] [%clk
00:00:45]} Qc7 {[%clk 00:00:28]} 35. Rxb8+ {[%emt 00:00:09] [%clk 00:00:37]}
Qxb8 {[%emt 00:00:01] [%clk 00:00:29]} 36. c5 {[%emt 00:00:07] [%clk 00:00:32]}
dxc5 {[%emt 00:00:09] [%clk 00:00:22]} 37. Nxc5 {[%clk 00:00:33]} Nxc5 {[%emt
00:00:01] [%clk 00:00:23]} 38. Qxc5 {[%clk 00:00:34]} Qb5 {[%emt 00:00:01] [%clk
00:00:24]} 39. Qd6 {[%emt 00:00:08] [%clk 00:00:27]} Qxd3 {[%emt 00:00:04] [%clk
00:00:22]} 40. Qxc6 {[%emt 00:00:03] [%clk 00:00:26]} Qe2 {[%emt 00:00:13]} 41.
Qc8+ {[%clk 00:00:24]} Bf8 {[%emt 00:00:01] [%clk 00:00:16]} 42. Qf5 {[%emt
00:00:03] [%clk 00:00:22]} Bg7 {[%emt 00:00:06] [%clk 00:00:13]} 43. Qc8+ {[%emt
00:00:02] [%clk 00:00:22]} Bf8 {[%emt 00:00:01] [%clk 00:00:14]} 44. Qf5 {[%emt
00:00:06] [%clk 00:00:18]} Qc4 {[%emt 00:00:02] [%clk 00:00:14]} 45. Ne5 {[%emt
00:00:07] [%clk 00:00:13]} Qe6 {[%emt 00:00:04] [%clk 00:00:13]} 46. Qxe6 {[%clk
00:00:13]} fxe6 {[%clk 00:00:14]} 47. Nd3 {[%emt 00:00:02] [%clk 00:00:12]} g4
{[%emt 00:00:04] [%clk 00:00:12]} 48. f4 {[%emt 00:00:01] [%clk 00:00:13]} Bd6
{[%emt 00:00:04] [%clk 00:00:11]} 49. e5 {[%emt 00:00:03] [%clk 00:00:12]} Bc7
{[%emt 00:00:01] [%clk 00:00:12]} 50. Nc5 {[%clk 00:00:13]} Bxa5 {[%emt
00:00:01] [%clk 00:00:12]} 51. Nxa6 {[%clk 00:00:14]} d3 {[%emt 00:00:03] [%clk
00:00:11]} 52. Kf1 {[%emt 00:00:03] [%clk 00:00:13]} Bb6 {[%emt 00:00:02] [%clk
00:00:12]} 53. Nb4 {[%emt 00:00:06] [%clk 00:00:09]} d2 {[%clk 00:00:13]} 54.
Ke2 {[%clk 00:00:11]} Bg1 {[%emt 00:00:01] [%clk 00:00:14]} 55. Kxd2 {[%emt
00:00:07] [%clk 00:00:06]} Bxh2 {[%emt 00:00:01] [%clk 00:00:15]} 56. Ke3 {[%emt
00:00:01] [%clk 00:00:06]} Bxg3 {[%clk 00:00:16]} 57. Nd3 {[%emt 00:00:04] [%clk
00:00:04]} Kf7 {[%emt 00:00:05] [%clk 00:00:14]} 58. Ke4 {[%emt 00:00:03] [%clk
00:00:04]} h5 {[%emt 00:00:04] [%clk 00:00:13]} 59. f5 {[%clk 00:00:05]} h4
{[%emt 00:00:02] [%clk 00:00:13]} 60. fxe6+ {[%emt 00:00:02] [%clk 00:00:05]}
Ke7 {[%emt 00:00:03] [%clk 00:00:12]} 61. Nc1 {[%emt 00:00:03] [%clk 00:00:03]}
h3 {[%emt 00:00:02] [%clk 00:00:12]} 62. Ne2 {[%clk 00:00:05]} Bf2 {[%emt
00:00:03] [%clk 00:00:11]} 0-1

[Site "Europe Echecs"]

[Event "Championnat d'Europe de Blitz"]
[Date "2024.12.09"]
[White "Popovic, Milos T"]
[Black "Van Foreest, Lucas"]
[WhiteElo "2334"]
[BlackElo "2520"]
[Round "6.29"]
[Result "1/2-1/2"]
[TimeControl "180+2"]

1. d4 {[%emt 00:03:19] [%clk 00:03:03]} d5 {[%emt 00:00:01] [%clk 00:03:03]} 2.
Bf4 {[%emt 00:00:01] [%clk 00:03:04]} e6 {[%emt 00:00:06] [%clk 00:02:59]} 3. e3
{[%emt 00:00:02] [%clk 00:03:04]} c5 {[%clk 00:03:00]} 4. c3 {[%emt 00:00:01]
[%clk 00:03:05]} Nc6 {[%clk 00:03:02]} 5. Nd2 {[%clk 00:03:06]} Bd6 {[%emt
00:00:03] [%clk 00:03:00]} 6. Bg3 {[%emt 00:00:02] [%clk 00:03:06]} Nge7 {[%emt
00:00:01] [%clk 00:03:01]} 7. Bd3 {[%emt 00:00:02] [%clk 00:03:06]} O-O {[%emt
00:00:04] [%clk 00:02:59]} 8. Ngf3 {[%clk 00:03:07]} h6 {[%emt 00:00:12] [%clk
00:02:49]} 9. O-O {[%emt 00:00:02] [%clk 00:03:07]} cxd4 {[%emt 00:00:05] [%clk
00:02:46]} 10. exd4 {[%emt 00:00:01] [%clk 00:03:08]} Bxg3 {[%emt 00:00:05]
[%clk 00:02:43]} 11. hxg3 {[%emt 00:00:01] [%clk 00:03:08]} Qd6 {[%clk
00:02:44]} 12. Re1 {[%emt 00:00:03] [%clk 00:03:07]} Bd7 {[%emt 00:00:01] [%clk
00:02:46]} 13. a3 {[%emt 00:00:14] [%clk 00:02:55]} Rac8 {[%emt 00:00:01] [%clk
00:02:45]} 14. Rc1 {[%emt 00:00:14] [%clk 00:02:45]} a6 {[%emt 00:00:27] [%clk
00:02:20]} 15. Bb1 {[%emt 00:00:06] [%clk 00:02:41]} g6 {[%emt 00:00:06] [%clk
00:02:16]} 16. Ne5 {[%emt 00:00:05] [%clk 00:02:39]} Nxe5 {[%emt 00:00:03] [%clk
00:02:15]} 17. dxe5 {[%emt 00:00:12] [%clk 00:02:29]} Qb6 {[%clk 00:02:16]} 18.
Qb3 {[%emt 00:00:02] [%clk 00:02:29]} Qa7 {[%emt 00:00:12] [%clk 00:02:05]} 19.
Nf3 {[%emt 00:00:03] [%clk 00:02:28]} Kg7 {[%emt 00:00:15] [%clk 00:01:55]} 20.
Qd1 {[%emt 00:00:02] [%clk 00:02:27]} Qc5 {[%emt 00:00:06] [%clk 00:01:49]} 21.
Qd2 {[%emt 00:00:07] [%clk 00:02:22]} Bb5 {[%emt 00:00:06] [%clk 00:01:45]} 22.
Qf4 {[%emt 00:00:06] [%clk 00:02:18]} Ng8 {[%emt 00:00:04] [%clk 00:01:43]} 23.
Nd4 {[%emt 00:00:03] [%clk 00:02:18]} Bd7 {[%emt 00:00:03] [%clk 00:01:41]} 24.
g4 {[%emt 00:00:08] [%clk 00:02:12]} Qe7 {[%emt 00:00:23]} 25. Re3 {[%clk
00:01:52]} Qg5 {[%emt 00:00:11] [%clk 00:01:33]} 26. Qg3 {[%emt 00:00:21] [%clk
00:01:33]} Qe7 {[%emt 00:00:02] [%clk 00:01:33]} 27. Qf4 {[%emt 00:00:23] [%clk
00:01:11]} Qg5 {[%emt 00:00:02] [%clk 00:01:33]} 28. Qg3 {[%emt 00:00:02] [%clk
00:01:11]} Qe7 {[%clk 00:01:34]} 1/2-1/2

[Site "Europe Echecs"]